fUSD/lending_fUSD_20240523
["ID","MTS","AMOUNT","RATE_DAILY","PERIOD"]
[327782201,1716475835288,-500.0,0.00023717,8]
[327782202,1716475835297,-500.0,0.00023717,8]
[327782203,1716475835306,-500.0,0.00023717,8]
[327782204,1716475835318,-650.32,0.00023718,2]
[327782205,1716475835326,-509.1,0.00023718,2]
[327782206,1716475835336,-513.71,0.00023718,2]
[327782207,1716475835345,-551.67,0.00023718,2]
[327782208,1716475835355,-500.0,0.00023718,2]
[327782209,1716475835365,-200.10680246,0.00023718,2]
[327782210,1716475835373,-956.07,0.00023718,2]
[327782211,1716475835383,-151.00061904,0.00023718,2]
[327782212,1716475835392,-540.83988822,0.00023718,2]
[327782213,1716475835402,-500.0,0.00023718,2]
[327782214,1716475835411,-155.53973438,0.00023718,2]
[327782215,1716475835420,-500.0,0.00023718,2]
[327782216,1716475835430,-500.0,0.00023718,2]
[327782217,1716475835439,-500.0,0.00023718,2]
[327782218,1716475835449,-773.58,0.00023718,2]
[327782219,1716475835458,-500.0,0.00023718,2]
[327782220,1716475835467,-503.43107445,0.00023718,2]
[327782221,1716475835476,-500.0,0.00023718,2]
[327782222,1716475835486,-504.053583,0.00023718,2]
[327782223,1716475835495,-503.37003991,0.00023718,2]
[327782224,1716475835505,-507.19486947,0.00023718,2]
[327782225,1716475835514,-698.11,0.00023718,2]
[327782226,1716475835524,-500.0,0.00023718,2]
[327782227,1716475835534,-500.0,0.00023718,2]
[327782228,1716475835543,-505.28329738,0.00023718,2]
[327782229,1716475835553,-648.45,0.00023718,2]
[327782230,1716475835565,-500.0,0.00023718,2]
[327782231,1716475835574,-500.0,0.00023718,2]
[327782232,1716475835584,-500.0,0.00023718,2]
[327782233,1716475835594,-500.0,0.00023718,2]
[327782234,1716475835603,-504.84490639,0.00023718,2]
[327782235,1716475835613,-504.11317407,0.00023718,2]
[327782236,1716475835623,-500.0,0.00023718,2]
[327782237,1716475835632,-506.01776218,0.00023718,2]
[327782238,1716475835642,-504.0459826,0.00023718,2]
[327782239,1716475835652,-500.0,0.00023718,2]
[327782240,1716475835662,-502.81412464,0.00023718,2]
[327782241,1716475835672,-508.3075522,0.00023718,2]
[327782242,1716475835682,-505.40273225,0.00023718,2]
[327782243,1716475835692,-503.51012319,0.00023718,2]
[327782244,1716475835703,-500.0,0.00023718,2]
[327782245,1716475835712,-732.3,0.00023718,2]
[327782246,1716475835721,-500.0,0.00023718,2]
[327782247,1716475835731,-500.0,0.00023718,2]
[327782248,1716475835741,-508.94800958,0.00023718,2]
[327782249,1716475835751,-511.45078959,0.00023718,2]
[327782250,1716475835761,-733.56,0.00023718,2]
[327782251,1716475835770,-500.0,0.00023718,2]
[327782252,1716475835780,-507.3542631,0.00023718,2]
[327782253,1716475835789,-507.13047585,0.00023718,2]
[327782254,1716475835799,-500.0,0.00023718,2]
[327782255,1716475835809,-500.0,0.00023718,2]
[327782256,1716475835821,-500.0,0.00023718,2]
[327782257,1716475835831,-500.0,0.00023718,2]
[327782258,1716475835842,-500.0,0.00023718,2]
[327782259,1716475835852,-1115.6,0.00023718,2]
[327782260,1716475835862,-500.0,0.00023718,2]
[327782261,1716475835873,-500.0,0.00023718,2]
[327782262,1716475835883,-504.4186493,0.00023718,2]
[327782263,1716475835892,-500.0,0.00023718,2]
[327782264,1716475835902,-510.26046785,0.00023718,2]
[327782265,1716475835912,-273.52862952,0.00023718,2]
[327782266,1716475835921,-506.88491987,0.00023718,2]
[327782267,1716475835931,-500.0,0.00023718,2]
[327782268,1716475835941,-500.0,0.00023718,2]
[327782269,1716475835951,-500.0,0.00023718,2]
[327782270,1716475835960,-502.60333059,0.00023718,2]
[327782271,1716475835970,-500.0,0.00023718,2]
[327782272,1716475835980,-500.0,0.00023718,2]
[327782273,1716475835990,-504.61545032,0.00023718,2]
[327782274,1716475835999,-504.89922675,0.00023718,2]
[327782275,1716475836009,-500.0,0.00023718,2]
[327782276,1716475836018,-500.0,0.00023718,2]
[327782277,1716475836028,-506.26552648,0.00023718,2]
[327782278,1716475836037,-500.0,0.00023718,2]
[327782279,1716475836047,-500.0,0.00023718,2]
[327782280,1716475836061,-500.0,0.00023718,2]
[327782281,1716475836070,-513.15,0.00023718,2]
[327782282,1716475836080,-500.0,0.00023718,2]
[327782283,1716475836090,-500.0,0.00023718,2]
[327782284,1716475836099,-500.0,0.00023718,2]
[327782285,1716475836108,-500.0,0.00023718,2]
[327782286,1716475836118,-500.0,0.00023718,2]
[327782287,1716475836128,-500.0,0.00023718,2]
[327782288,1716475836138,-500.0,0.00023718,2]
[327782289,1716475836151,-504.72489349,0.00023718,2]
[327782290,1716475836163,-500.0,0.00023718,2]
[327782291,1716475836173,-500.0,0.00023718,2]
[327782292,1716475836183,-500.0,0.00023718,2]
[327782293,1716475836194,-500.0,0.00023718,2]
[327782294,1716475836205,-503.41818142,0.00023718,2]
[327782295,1716475836215,-500.0,0.00023718,2]
[327782296,1716475836225,-500.0,0.00023718,2]
[327782297,1716475836234,-500.0,0.00023718,2]
[327782298,1716475836243,-500.0,0.00023718,2]
[327782299,1716475836253,-500.0,0.00023718,2]
[327782300,1716475836263,-163.84933957,0.00023718,2]
[327782301,1716475836524,-8.94066043,0.00023718,2]
[327782302,1716475836535,-500.0,0.00023718,2]
[327782303,1716475836545,-343.85564957,0.00023718,2]
[327782304,1716475836557,-156.14435043,0.00023718,2]
[327782305,1716475836569,-271.11589914,0.00023718,2]
[327782306,1716475836581,-228.88410086,0.00023718,2]
[327782307,1716475836591,-500.0,0.00023718,2]
[327782308,1716475836601,-500.0,0.00023718,2]
[327782309,1716475836610,-500.0,0.00023718,2]
[327782310,1716475836621,-500.0,0.00023718,2]
[327782311,1716475836631,-500.0,0.00023718,2]
[327782312,1716475836641,-500.0,0.00023718,2]
[327782313,1716475836651,-832.77,0.00023718,2]
[327782314,1716475836661,-500.0,0.00023718,2]
[327782315,1716475836670,-500.0,0.00023718,2]
[327782316,1716475836680,-1375.19,0.00023718,2]
[327782317,1716475836690,-500.0,0.00023718,2]
[327782318,1716475836700,-850.19,0.00023718,2]
[327782319,1716475836710,-1371.61,0.00023718,2]
[327782320,1716475836720,-500.0,0.00023718,2]
[327782321,1716475836730,-500.0,0.00023718,2]
[327782322,1716475836740,-500.0,0.00023718,2]
[327782323,1716475836750,-2826.62,0.00023718,2]
[327782324,1716475836761,-605.92,0.00023718,2]
[327782325,1716475836771,-500.0,0.00023718,2]
[327782326,1716475836781,-1226.25,0.00023718,2]
[327782327,1716475836791,-500.0,0.00023718,2]
[327782328,1716475836802,-500.0,0.00023718,2]
[327782329,1716475836813,-566.73,0.00023718,2]
[327782330,1716475836823,-500.0,0.00023718,2]
[327782331,1716475836834,-500.0,0.00023718,2]
[327782332,1716475836844,-500.0,0.00023718,2]
[327782333,1716475836855,-709.73,0.00023718,2]
[327782334,1716475836865,-500.0,0.00023718,2]
[327782335,1716475836876,-500.0,0.00023718,2]
[327782336,1716475836886,-500.0,0.00023718,2]
[327782337,1716475836896,-500.0,0.00023718,2]
[327782338,1716475836906,-500.0,0.00023718,2]
[327782339,1716475836916,-500.0,0.00023718,2]
[327782340,1716475836926,-500.0,0.00023718,2]
[327782341,1716475836936,-500.0,0.00023718,2]
[327782342,1716475836946,-825.08,0.00023718,2]
[327782343,1716475836956,-500.0,0.00023718,2]
[327782344,1716475836966,-2100.04,0.00023718,2]
[327782345,1716475836976,-1440.65,0.00023718,2]
[327782346,1716475836986,-500.0,0.00023718,2]
[327782347,1716475836996,-500.0,0.00023718,2]
[327782348,1716475837007,-500.0,0.00023718,2]
[327782349,1716475837016,-500.0,0.00023718,2]
[327782350,1716475837026,-500.0,0.00023718,2]
[327782351,1716475837036,-484.25042854,0.00023719,5]
[327782352,1716475837046,-500.0,0.00023719,5]
[327782353,1716475837056,-500.0,0.00023719,5]
[327782354,1716475837289,-500.0,0.00023719,5]
[327782355,1716475837299,-500.0,0.00023719,5]
[327782356,1716475837309,-500.0,0.00023719,5]
[327782357,1716475837324,-326.0854676,0.00023719,5]
[327782358,1716475837391,779.22,0.00022895,5]
[327782359,1716475837489,779.22,0.00023169,6]
[327782360,1716475837605,779.22,0.00023443,7]
[327782375,1716475838363,-150.0,0.0002361,2]
[327782377,1716475838373,-150.0,0.00023622,2]
[327782378,1716475838382,-150.0,0.0002363,2]
[327782380,1716475838392,-150.0,0.00023635,2]
[327782382,1716475838401,-150.0,0.00023646,2]
[327782383,1716475838411,-150.0,0.00023646,2]
[327782384,1716475838421,-150.0,0.00023648,2]
[327782385,1716475838431,-150.0,0.0002367,2]
[327782386,1716475838441,-150.0,0.00023672,2]
[327782387,1716475838451,-150.0,0.00023692,2]
[327782388,1716475838461,-150.0,0.00023696,2]
[327782389,1716475838471,-150.0,0.00023712,2]
[327782390,1716475838482,-779.22,0.00023717,8]
[327782391,1716475838492,-173.9145324,0.00023719,5]
[327782392,1716475838503,-500.0,0.00023719,5]
[327782393,1716475838513,-500.0,0.00023719,5]
[327782394,1716475838522,-230.16058319,0.00023719,5]
[327782395,1716475838531,-500.0,0.00023719,5]
[327782396,1716475838540,-500.0,0.00023719,5]
[327782397,1716475838550,-654.79,0.00023719,5]
[327782398,1716475838559,-500.0,0.00023719,5]
[327782399,1716475838572,-500.0,0.00023719,5]
[327782400,1716475838583,-500.0,0.00023719,5]
[327782401,1716475838593,-150.0,0.0002372,2]
[327782402,1716475838603,-150.0,0.00023729,2]
[327782403,1716475838613,-613.27998296,0.0002373,2]
[327782404,1716475838623,-150.0,0.00023732,2]
[327782405,1716475838634,-960.2327886,0.00023732,2]
[327782406,1716475838645,-80.06021959,0.00023733,2]
[327782407,1716475838658,-69.93978041,0.00023733,2]
[327782408,1716475838671,-183.05385849,0.00023734,2]
[327782409,1716475838682,-2000.0,0.00023735,2]
[327782410,1716475838692,-200.0,0.00023735,2]
[327782411,1716475838702,-150.0,0.00023735,2]
[327782412,1716475838712,-2000.0,0.00023735,2]
[327782413,1716475838721,-200.0,0.00023735,2]
[327782414,1716475838731,-150.0,0.00023735,2]
[327782415,1716475838741,-150.0,0.00023737,2]
[327782416,1716475838751,-150.0,0.00023737,2]
[327782417,1716475838760,-159.18081807,0.00023738,2]
[327782418,1716475838770,-154.66364069,0.00023741,2]
[327782419,1716475838780,-1500.0,0.00023741,2]
[327782420,1716475838790,-150.0,0.00023742,2]
[327782421,1716475838800,-1500.0,0.00023742,2]
[327782422,1716475838809,-150.0,0.00023742,2]
[327782423,1716475838823,-150.0,0.00023742,2]
[327782424,1716475838833,-150.0,0.00023744,2]
[327782425,1716475838842,-323.27907359,0.00023747,2]
[327782426,1716475838851,-150.0,0.00023748,2]
[327782427,1716475838861,-150.0,0.00023749,2]
[327782428,1716475838871,-300.0,0.0002375,2]
[327782429,1716475838880,-1500.0,0.00023753,2]
[327782430,1716475838889,-150.0,0.00023758,2]
[327782431,1716475838899,-150.0,0.00023761,2]
[327782432,1716475838908,-150.0,0.00023762,2]
[327782433,1716475838918,-1500.0,0.00023762,2]
[327782434,1716475838928,-150.0,0.00023763,2]
[327782435,1716475838938,-300.0,0.00023765,2]
[327782436,1716475838948,-150.0,0.00023767,2]
[327782437,1716475838958,-1500.0,0.00023767,2]
[327782438,1716475838968,-824.7068,0.00023767,2]
[327782439,1716475838978,-150.0,0.00023768,2]
[327782440,1716475838987,-1500.0,0.00023768,2]
[327782441,1716475838996,-150.0,0.00023769,2]
[327782442,1716475839006,-150.0,0.0002377,2]
[327782443,1716475839015,-713.3372251,0.0002377,2]
[327782444,1716475839624,-150.0,0.00023608,2]
[327782445,1716475839634,-150.0,0.00023611,2]
[327782446,1716475839644,-150.0,0.00023628,2]
[327782447,1716475839654,-150.0,0.00023631,2]
[327782448,1716475839664,-150.0,0.00023634,2]
[327782449,1716475839673,-150.0,0.00023645,2]
[327782450,1716475839683,-150.0,0.00023649,2]
[327782451,1716475839692,-150.0,0.00023662,2]
[327782452,1716475839702,-150.0,0.00023676,2]
[327782454,1716475839712,-150.0,0.00023677,2]
[327782456,1716475839722,-150.0,0.00023696,2]
[327782458,1716475839732,-9156.94527158,0.00023698,2]
[327782460,1716475839742,-150.0,0.0002371,2]
[327782461,1716475839752,-150.0,0.00023715,2]
[327782462,1716475839762,-500.0,0.00023716,2]
[327782463,1716475839772,-150.0,0.00023719,2]
[327782464,1716475839783,-150.0,0.00023721,2]
[327782465,1716475839793,-150.0,0.00023729,2]
[327782466,1716475839803,-150.0,0.00023734,2]
[327782467,1716475839811,-150.0,0.00023756,2]
[327782468,1716475839823,-150.0,0.00023767,2]
[327782469,1716475839832,-786.6627749,0.0002377,2]
[327782470,1716475839842,-150.0,0.00023771,2]
[327782471,1716475839851,-150.0,0.00023773,2]
[327782472,1716475839861,-150.0,0.00023774,2]
[327782473,1716475839870,-1000.0,0.00023774,2]
[327782474,1716475839880,-150.0,0.00023781,2]
[327782475,1716475839889,-1500.0,0.00023782,2]
[327782476,1716475839899,-150.0,0.00023783,2]
[327782477,1716475839909,-1500.0,0.00023785,2]
[327782478,1716475839920,-1500.0,0.00023785,2]
[327782479,1716475839930,-150.0,0.00023786,2]
[327782480,1716475839939,-150.0,0.00023788,2]
[327782481,1716475839949,-150.0,0.00023789,2]
[327782482,1716475839959,-150.0,0.0002379,2]
[327782483,1716475839969,-157.85307515,0.0002379,2]
[327782484,1716475840002,-150.0,0.0002379,2]
[327782485,1716475840018,-150.0,0.00023791,2]
[327782486,1716475840034,-1500.0,0.00023792,2]
[327782487,1716475840049,-1500.0,0.00023794,2]
[327782488,1716475840065,-157.96956562,0.00023794,2]
[327782489,1716475840079,-150.0,0.00023794,2]
[327782490,1716475840090,-159.2,0.00023796,2]
[327782491,1716475840101,-300.0,0.00023796,2]
[327782492,1716475840115,-150.0,0.00023796,2]
[327782493,1716475840128,-150.0,0.00023797,2]
[327782494,1716475840140,-150.0,0.00023797,2]
[327782495,1716475840156,-150.0,0.00023797,2]
[327782497,1716475840169,-150.0,0.00023797,2]
[327782499,1716475840183,-500.0,0.00023799,2]
[327782500,1716475840196,-824.59,0.00023799,2]
[327782501,1716475840208,-161.44222683,0.00023799,2]
[327782502,1716475840222,-593.19,0.00023799,2]
[327782503,1716475840236,-500.0,0.00023799,2]
[327782504,1716475840249,-500.0,0.00023799,2]
[327782505,1716475840262,-500.0,0.00023799,2]
[327782506,1716475840274,-500.0,0.00023799,2]
[327782507,1716475840286,-500.0,0.00023799,2]
[327782508,1716475840299,-551.11,0.00023799,2]
[327782509,1716475840312,-3651.03708592,0.00023799,2]
[327782510,1716475840331,-338.88743,0.00023799,2]
[327782511,1716475840349,-4090.06548408,0.00023799,2]
[327782512,1716475840362,-500.0,0.00023799,2]
[327782513,1716475840374,-150.0,0.00023799,2]
[327782514,1716475840386,-347.954734,0.000238,2]
[327782515,1716475840398,-1500.0,0.00023801,2]
[327782516,1716475840409,-195.10194192,0.00023802,2]
[327782517,1716475840423,-376.45495096,0.00023802,2]
[327782518,1716475840437,-354.85169966,0.00023802,2]
[327782519,1716475840452,-573.59140746,0.00023802,2]
[327782520,1716475840465,-150.0,0.00023803,2]
[327782521,1716475840478,-150.0,0.00023805,2]
[327782522,1716475840490,-150.0,0.00023808,2]
[327782523,1716475840502,-150.0,0.00023809,2]
[327782524,1716475840515,-150.0,0.0002381,2]
[327782525,1716475840528,-150.0,0.00023812,2]
[327782526,1716475840540,-1500.0,0.00023814,2]
[327782527,1716475840559,-150.0,0.00023815,2]
[327782528,1716475840575,-150.0,0.00023815,2]
[327782529,1716475840586,-15709.80859271,0.00023815,2]
[327782530,1716475840599,-7932.79384,0.00023815,2]
[327782531,1716475840612,-2715.35264,0.00023815,2]
[327782534,1716475842285,-150.0,0.00023603,2]
[327782535,1716475842297,-133.72219986,0.00023614,2]
[327782539,1716475842825,-16.27780014,0.00023614,2]
[327782541,1716475842838,-150.0,0.00023615,2]
[327782543,1716475842850,-150.0,0.00023619,2]
[327782546,1716475842861,-150.0,0.0002363,2]
[327782548,1716475842873,-150.0,0.00023634,2]
[327782549,1716475842884,-150.0,0.00023637,2]
[327782550,1716475842896,-150.0,0.00023663,2]
[327782551,1716475842907,-150.0,0.00023665,2]
[327782552,1716475842919,-150.0,0.0002367,2]
[327782553,1716475842930,-150.0,0.00023682,2]
[327782554,1716475842942,-150.0,0.00023683,2]
[327782555,1716475842954,-150.0,0.00023686,2]
[327782556,1716475842964,-150.0,0.00023712,2]
[327782557,1716475842976,-500.0,0.00023716,2]
[327782558,1716475842987,-500.0,0.00023716,2]
[327782559,1716475842999,-500.0,0.00023716,2]
[327782560,1716475843010,-500.0,0.00023716,2]
[327782561,1716475843022,-500.0,0.00023716,2]
[327782562,1716475843033,-150.0,0.00023722,2]
[327782563,1716475843044,-150.0,0.0002373,2]
[327782564,1716475843055,-150.0,0.00023733,2]
[327782565,1716475843067,-150.0,0.00023736,2]
[327782566,1716475843078,-150.0,0.00023743,2]
[327782567,1716475843089,-300.0,0.00023748,2]
[327782568,1716475843100,-150.0,0.00023754,2]
[327782569,1716475843112,-150.0,0.00023755,2]
[327782570,1716475843122,-102.93189987,0.00023755,2]
[327782571,1716475843441,-197.06810013,0.00023755,2]
[327782574,1716475843453,-150.0,0.00023756,2]
[327782576,1716475843465,-150.0,0.00023756,2]
[327782577,1716475843477,-150.0,0.00023767,2]
[327782578,1716475843489,-100.58228991,0.00023769,2]
[327782579,1716475843504,-49.41771009,0.00023769,2]
[327782580,1716475843516,-150.0,0.00023779,2]
[327782581,1716475843528,-150.0,0.00023788,2]
[327782582,1716475843541,-150.0,0.00023809,2]
[327782583,1716475843553,-150.0,0.00023815,2]
[327782584,1716475843566,-150.0,0.00023815,2]
[327782585,1716475843578,-137.52601419,0.00023815,2]
[327782586,1716475843593,-511.19185258,0.00023815,2]
[327782587,1716475843607,-1274.61561243,0.00023815,2]
[327782589,1716475843621,-6799.793,0.00023815,2]
[327782590,1716475843636,-633.42024,0.00023815,2]
[327782591,1716475843651,-6960.3857798,0.00023815,2]
[327782592,1716475843692,-193.04271075,0.00023816,2]
[327782593,1716475843738,-150.97582734,0.00023816,2]
[327782594,1716475843879,-300.0,0.00023818,2]
[327782595,1716475843971,-150.0,0.00023818,2]
[327782596,1716475844123,-150.0,0.00023818,2]
[327782597,1716475844218,-150.0,0.00023819,2]
[327782598,1716475844301,-150.0,0.00023819,2]
[327782599,1716475844351,-150.0,0.00023822,2]
[327782600,1716475844379,-510.21660306,0.00023822,2]
[327782601,1716475844394,-300.0,0.00023823,2]
[327782602,1716475844409,-150.0,0.00023824,2]
[327782603,1716475844422,-150.0,0.00023825,2]
[327782604,1716475844436,-286.57450461,0.00023827,2]
[327782605,1716475844449,-150.0,0.00023827,2]
[327782606,1716475844462,-150.0,0.00023829,2]
[327782607,1716475844474,-150.0,0.0002383,2]
[327782608,1716475844487,-300.0,0.0002383,2]
[327782609,1716475844501,-150.0,0.00023831,2]
[327782610,1716475844514,-150.0,0.00023832,2]
[327782611,1716475844528,-1500.0,0.00023833,2]
[327782612,1716475844541,-1500.0,0.00023833,2]
[327782613,1716475844554,-503.50972479,0.00023834,2]
[327782614,1716475844567,-719.5,0.00023834,6]
[327782615,1716475844581,-150.0,0.00023835,2]
[327782616,1716475844593,-150.0,0.00023835,2]
[327782617,1716475844606,-150.0,0.00023836,2]
[327782618,1716475844619,-150.0,0.00023837,2]
[327782619,1716475844631,-150.0,0.00023837,2]
[327782620,1716475844644,-300.0,0.00023837,2]
[327782621,1716475844656,-150.0,0.00023838,2]
[327782622,1716475844668,-150.0,0.00023838,2]
[327782623,1716475844681,-613.27998296,0.00023841,2]
[327782624,1716475844693,-150.0,0.00023844,2]
[327782625,1716475844705,-1500.0,0.00023845,2]
[327782626,1716475844718,-300.0,0.00023846,2]
[327782627,1716475844730,-150.0,0.00023846,2]
[327782628,1716475844742,-150.0,0.00023847,2]
[327782629,1716475844755,-960.2327886,0.00023847,2]
[327782630,1716475844767,-150.0,0.00023847,2]
[327782631,1716475844780,-150.0,0.00023847,2]
[327782632,1716475844793,-150.0,0.00023849,2]
[327782633,1716475844806,-300.0,0.00023849,2]
[327782634,1716475844818,-150.0,0.00023849,2]
[327782635,1716475844831,-150.0,0.0002385,2]
[327782636,1716475844843,-150.0,0.00023854,2]
[327782637,1716475844855,-1500.0,0.00023854,2]
[327782638,1716475844867,-150.0,0.00023855,2]
[327782639,1716475844879,-150.0,0.00023855,2]
[327782640,1716475844891,-1500.0,0.00023855,2]
[327782641,1716475844904,-150.0,0.00023857,2]
[327782642,1716475844915,-150.0,0.00023857,2]
[327782643,1716475844926,-150.0,0.00023859,2]
[327782644,1716475844936,-150.0,0.0002386,2]
[327782645,1716475844946,-1500.0,0.0002386,2]
[327782646,1716475844957,-150.0,0.0002386,2]
[327782647,1716475844968,-250.81296773,0.0002386,2]
[327782648,1716475844978,-150.0,0.0002386,2]
[327782649,1716475844988,-1500.0,0.00023863,2]
[327782650,1716475844999,-150.0,0.00023864,2]
[327782651,1716475845009,-150.0,0.00023864,2]
[327782652,1716475845021,-150.0,0.00023864,2]
[327782653,1716475845033,-300.0,0.00023865,2]
[327782654,1716475845044,-150.0,0.00023866,2]
[327782655,1716475845055,-150.0,0.00023866,2]
[327782656,1716475845068,-150.0,0.00023867,2]
[327782657,1716475845078,-150.0,0.00023868,2]
[327782658,1716475845087,-1500.0,0.00023869,2]
[327782659,1716475845095,-150.0,0.00023869,2]
[327782660,1716475845104,-150.0,0.00023872,2]
[327782661,1716475845115,-150.0,0.00023873,2]
[327782662,1716475845125,-150.0,0.00023874,2]
[327782663,1716475845136,-269.47191169,0.00023874,2]
[327782664,1716475845147,-150.0,0.00023874,2]
[327782665,1716475845162,-150.0,0.00023875,2]
[327782666,1716475845173,-300.0,0.00023875,2]
[327782667,1716475845183,-524.28,0.00023875,2]
[327782668,1716475845194,-352.06,0.00023875,2]
[327782669,1716475845205,-150.0,0.00023877,2]
[327782670,1716475845216,-1500.0,0.00023879,2]
[327782671,1716475845228,-300.0,0.00023879,2]
[327782672,1716475845240,-150.0,0.00023882,2]
[327782673,1716475845251,-300.0,0.00023884,2]
[327782674,1716475845671,-150.0,0.00023888,2]
[327782675,1716475845700,-559.06761316,0.00023889,2]
[327782676,1716475845721,-604.0,0.00023889,2]
[327782677,1716475845736,-413.534,0.00023889,2]
[327782678,1716475845745,-10000.0,0.00023893,2]
[327782679,1716475845755,-159.2,0.00023895,2]
[327782680,1716475845765,-150.0,0.00023896,2]
[327782681,1716475845774,-436.8264,0.00023897,2]
[327782682,1716475845784,-3319.14185448,0.00023897,2]
[327782683,1716475845794,-217.13885776,0.00023897,2]
[327782684,1716475845803,-279.39321075,0.00023899,2]
[327782685,1716475845813,-500.0,0.00023899,3]
[327782686,1716475845826,-6070.0,0.000239,4]
[327782687,1716475845835,-150.0,0.000239,2]
[327782688,1716475845844,-507.03845754,0.000239,2]
[327782689,1716475845853,-179.07979229,0.000239,2]
[327782690,1716475845863,-1500.0,0.00023902,2]
[327782691,1716475845872,-500.0,0.00023903,3]
[327782692,1716475845883,-416.39978485,0.00023904,9]
[327782693,1716475845892,-500.0,0.00023904,9]
[327782694,1716475845902,-1712.16,0.00023904,9]
[327782695,1716475845912,-500.0,0.00023904,9]
[327782696,1716475845921,-1769.65,0.00023904,9]
[327782697,1716475845930,-165.19606884,0.00023904,9]
[327782698,1716475845940,-524.44019185,0.00023904,9]
[327782699,1716475845953,-737.02988073,0.00023904,9]
[327782700,1716475845966,-300.32992742,0.00023904,9]
[327782701,1716475845976,-550.58,0.00023904,9]
[327782702,1716475845985,-500.0,0.00023904,9]
[327782703,1716475845996,-500.0,0.00023904,9]
[327782704,1716475846006,-803.52,0.00023904,9]
[327782705,1716475846016,-500.0,0.00023904,9]
[327782706,1716475846026,-500.0,0.00023904,9]
[327782707,1716475846036,-500.0,0.00023904,9]
[327782708,1716475846046,-643.68962167,0.00023904,9]
[327782709,1716475846056,-500.0,0.00023904,9]
[327782710,1716475846065,-500.0,0.00023904,9]
[327782711,1716475846077,-150.0,0.00023909,2]
[327782712,1716475846087,-150.0,0.00023912,2]
[327782713,1716475846096,-150.0,0.00023915,2]
[327782714,1716475846104,-2000.0,0.00023916,2]
[327782715,1716475846114,-200.0,0.00023916,2]
[327782716,1716475846124,-2000.0,0.00023916,2]
[327782717,1716475846134,-200.0,0.00023916,2]
[327782718,1716475846144,-150.0,0.0002392,2]
[327782719,1716475846155,-150.0,0.00023921,2]
[327782720,1716475846167,-150.0,0.00023921,2]
[327782721,1716475846176,-150.0,0.00023925,2]
[327782722,1716475846185,-150.0,0.00023926,2]
[327782723,1716475846195,-150.0,0.00023928,2]
[327782724,1716475846205,-150.0,0.00023928,2]
[327782725,1716475846215,-150.0,0.00023933,2]
[327782726,1716475846224,-150.0,0.00023943,2]
[327782727,1716475846234,-150.0,0.00023949,2]
[327782729,1716475846247,-150.0,0.00023952,2]
[327782730,1716475846256,-613.27998296,0.00023953,2]
[327782732,1716475846267,-150.0,0.00023956,2]
[327782735,1716475846277,-150.0,0.00023957,2]
[327782738,1716475846287,-150.0,0.00023961,2]
[327782740,1716475846297,-150.0,0.00023961,2]
[327782741,1716475846307,-300.0,0.00023963,2]
[327782743,1716475846317,-150.0,0.00023968,2]
[327782745,1716475846329,-150.0,0.00023971,2]
[327782747,1716475846339,-2000.0,0.00023972,2]